fUST/lending_fUST_20251209
["ID","MTS","AMOUNT","RATE_DAILY","PERIOD"]
[397670726,1765219690434,675.0,5.011e-05,2]
[397670749,1765219745089,-1326.33834888,6.505e-05,2]
[397670750,1765219745111,-4551.06941908,6.571e-05,2]
[397670751,1765219745132,-300.0,6.636e-05,2]
[397670752,1765219745151,-4530.40398778,6.637e-05,2]
[397670753,1765219745171,-293.06091447,6.738e-05,2]
[397670754,1765219745192,-595.0,6.771e-05,2]
[397670755,1765219745212,-520.96941338,7.121e-05,2]
[397670832,1765219833171,-29.69432115,7.05e-05,2]
[397670833,1765219833182,-875.89904586,7.05e-05,2]
[397670834,1765219833193,-567.45196851,7.05e-05,2]
[397670835,1765219833232,-3526.95466448,7.05e-05,2]
[397670836,1765219833241,-520.0,7.05e-05,2]
[397670837,1765219833250,-287.19969618,7.086e-05,2]
[397670838,1765219833259,-250.0,7.352e-05,3]
[397670839,1765219833268,-300.0,7.52e-05,2]
[397670840,1765219833276,-500.0,7.521e-05,2]
[397670841,1765219833285,-291.781672,7.521e-05,2]
[397670842,1765219833297,-200.0738463,7.521e-05,2]
[397670843,1765219833307,-415.0,7.622e-05,2]
[397670844,1765219833316,-300.0,7.637e-05,2]
[397670845,1765219833325,-300.0,7.637e-05,2]
[397670846,1765219833334,-300.0,7.637e-05,2]
[397670847,1765219833343,-300.0,7.637e-05,2]
[397670848,1765219833352,-49.40251482,7.637e-05,2]
[397670849,1765219833384,-250.59748518,7.637e-05,2]
[397670850,1765219833393,-300.0,7.637e-05,2]
[397670851,1765219833403,-300.0,7.637e-05,2]
[397670852,1765219833412,-300.0,7.637e-05,2]
[397670853,1765219833421,-300.0,7.637e-05,2]
[397670854,1765219833430,-300.0,7.637e-05,2]
[397670855,1765219833439,-300.0,7.637e-05,2]
[397670856,1765219833448,-300.0,7.637e-05,2]
[397670857,1765219833457,-300.0,7.637e-05,2]
[397670858,1765219833465,-300.0,7.637e-05,2]
[397670859,1765219833474,-300.0,7.637e-05,2]
[397670860,1765219833483,-265.14524243,7.787e-05,2]
[397670861,1765219833492,-2487.15318209,7.796e-05,2]
[397670862,1765219833501,-10000.01,7.895e-05,2]
[397670863,1765219833510,-218.324,7.99e-05,2]
[397670864,1765219833519,-1755.1,8.102e-05,2]
[397670865,1765219833528,-600.0,8.154e-05,2]
[397670866,1765219833537,-500.0,8.214e-05,2]
[397670867,1765219833546,-500.0,8.214e-05,2]
[397670868,1765219833555,-500.0,8.214e-05,2]
[397670869,1765219833563,-500.0,8.214e-05,2]
[397670870,1765219833572,-500.0,8.214e-05,2]
[397670871,1765219833582,-500.0,8.214e-05,2]
[397670872,1765219833591,-500.0,8.214e-05,2]
[397670873,1765219833600,-500.0,8.214e-05,2]
[397670874,1765219833609,-500.0,8.214e-05,2]
[397670875,1765219833618,-500.0,8.214e-05,2]
[397670876,1765219833628,-500.0,8.214e-05,2]
[397670877,1765219833637,-500.0,8.214e-05,2]
[397670878,1765219833646,-500.0,8.214e-05,2]
[397670879,1765219833655,-500.0,8.214e-05,2]
[397670880,1765219833664,-250.0,8.218e-05,2]
[397670881,1765219833673,-500.0,8.219e-05,2]
[397670882,1765219833683,-500.0,8.219e-05,2]
[397670883,1765219833692,-500.0,8.219e-05,2]
[397670884,1765219833701,-501.80817857,8.219e-05,2]
[397670885,1765219833710,-500.0,8.219e-05,2]
[397670886,1765219833720,-500.0,8.219e-05,2]
[397670887,1765219833729,-500.0,8.219e-05,2]
[397670888,1765219833739,-949.78,8.219e-05,2]
[397670889,1765219833748,-587.28,8.219e-05,2]
[397670890,1765219833757,-601.28,8.219e-05,2]
[397670891,1765219833766,-630.2,8.219e-05,2]
[397670892,1765219833775,-500.0,8.219e-05,2]
[397670893,1765219833785,-500.0,8.219e-05,2]
[397670894,1765219833794,-460.97280255,8.219e-05,2]
[397670895,1765219833804,-500.63042268,8.219e-05,2]
[397670896,1765219833813,-500.0,8.219e-05,2]
[397670897,1765219833825,-500.0,8.219e-05,2]
[397670898,1765219833834,-500.0,8.219e-05,2]
[397670899,1765219833844,-165.5142653,8.219e-05,2]
[397670900,1765219833853,-500.0,8.219e-05,2]
[397670901,1765219833863,-500.0,8.219e-05,2]
[397670902,1765219833873,-500.0,8.219e-05,2]
[397670903,1765219833892,-856.23,8.219e-05,2]
[397670904,1765219833903,-500.0,8.219e-05,2]
[397670905,1765219833913,-500.0,8.219e-05,2]
[397670906,1765219833922,-500.0,8.219e-05,2]
[397670907,1765219833932,-548.12,8.219e-05,2]
[397670908,1765219833943,-206.69633031,8.219e-05,2]
[397670909,1765219833952,-500.0,8.219e-05,2]
[397670910,1765219833961,-500.0,8.219e-05,2]
[397670911,1765219833970,-500.0,8.219e-05,2]
[397670912,1765219833980,-500.0,8.219e-05,2]
[397670913,1765219833990,-500.0,8.219e-05,2]
[397670914,1765219833999,-1267.51,8.219e-05,2]
[397670915,1765219834008,-816.91,8.219e-05,2]
[397670916,1765219834017,-500.0,8.219e-05,2]
[397670917,1765219834027,-748.83,8.219e-05,2]
[397670918,1765219834037,-500.0,8.219e-05,2]
[397670919,1765219834047,-500.0,8.219e-05,2]
[397670920,1765219834056,-549.69,8.219e-05,2]
[397670921,1765219834066,-787.83,8.219e-05,2]
[397670922,1765219834075,-500.0,8.219e-05,2]
[397670923,1765219834084,-831.66,8.219e-05,2]
[397670924,1765219834093,-500.0,8.219e-05,2]
[397670925,1765219834102,-500.0,8.219e-05,2]
[397670926,1765219834111,-1466.691105,8.219e-05,2]
[397670927,1765219834119,-1201.67,8.219e-05,2]
[397670928,1765219834129,-1052.12,8.219e-05,2]
[397670929,1765219834138,-500.0,8.219e-05,2]
[397670930,1765219834148,-696.73,8.219e-05,2]
[397670931,1765219834157,-1064.26,8.219e-05,2]
[397670932,1765219834166,-500.0,8.219e-05,2]
[397670933,1765219834176,-312.40980855,8.219e-05,2]
[397670934,1765219834185,-500.0,8.219e-05,2]
[397670935,1765219834194,-500.0,8.219e-05,2]
[397670936,1765219834204,-500.0,8.219e-05,2]
[397670937,1765219834213,-500.0,8.219e-05,2]
[397670938,1765219834222,-500.0,8.219e-05,2]
[397670939,1765219834231,-628.8,8.219e-05,2]
[397670941,1765219834240,-500.0,8.219e-05,2]
[397670942,1765219834250,-546.53,8.219e-05,2]
[397670943,1765219834259,-500.0,8.219e-05,2]
[397670944,1765219834269,-646.58,8.219e-05,2]
[397670945,1765219834278,-583.87314097,8.219e-05,2]
[397670946,1765219834287,-500.0,8.219e-05,2]
[397670947,1765219834296,-500.0,8.219e-05,2]
[397670948,1765219834306,-500.0,8.219e-05,2]
[397670949,1765219834316,-500.0,8.219e-05,2]
[397670950,1765219834326,-500.0,8.219e-05,2]
[397670951,1765219834335,-500.0,8.219e-05,2]
[397670952,1765219834344,-500.0,8.219e-05,2]
[397670953,1765219834353,-500.0,8.219e-05,2]
[397670954,1765219834363,-1143.95,8.219e-05,2]
[397670955,1765219834374,-500.0,8.219e-05,2]
[397670956,1765219834383,-500.0,8.219e-05,2]
[397670957,1765219834392,-500.0,8.219e-05,2]
[397670958,1765219834402,-559.66,8.219e-05,2]
[397670959,1765219834411,-631.39717541,8.219e-05,2]
[397670960,1765219834420,-1117.05,8.219e-05,2]
[397670961,1765219834429,-183.84785526,8.219e-05,2]
[397670998,1765219838177,-500.0,7.636e-05,2]
[397671020,1765219838348,-125.58105007,7.636e-05,2]
[397671044,1765219838597,-374.41894993,7.636e-05,2]
[397671046,1765219838606,-450.15916011,7.636e-05,2]
[397671048,1765219838615,-95.43174506,7.636e-05,2]
[397671195,1765219840236,-5000.0,7.56e-05,2]
[397671197,1765219840245,-404.56825494,7.636e-05,2]
[397671199,1765219840254,-500.0,7.636e-05,2]
[397671201,1765219840264,-500.0,7.636e-05,2]
[397671203,1765219840273,-500.0,7.636e-05,2]
[397671205,1765219840282,-500.0,7.636e-05,2]
[397671207,1765219840291,-300.0,7.636e-05,2]
[397671209,1765219840301,-447.54376915,7.636e-05,2]
[397671211,1765219840309,-206.30326652,7.636e-05,2]
[397671213,1765219840319,-300.0,7.636e-05,2]
[397671215,1765219840328,-500.0,7.636e-05,2]
[397671217,1765219840337,-500.0,7.636e-05,2]
[397671219,1765219840347,-500.0,7.636e-05,2]
[397671221,1765219840356,-316.15214474,8.219e-05,2]
[397671223,1765219840365,-293.78283623,8.219e-05,2]
[397671226,1765219840375,-500.0,8.219e-05,2]
[397671227,1765219840383,-500.0,8.219e-05,2]
[397671229,1765219840392,-500.0,8.219e-05,2]
[397671231,1765219840401,-500.0,8.219e-05,2]
[397671233,1765219840410,-1083.59,8.219e-05,2]
[397671235,1765219840419,-465.45146085,8.219e-05,2]
[397671238,1765219840429,-295.23725147,8.219e-05,2]
[397671239,1765219840438,-500.0,8.219e-05,2]
[397671242,1765219840448,-541.58,8.219e-05,2]
[397671243,1765219840456,-500.0,8.219e-05,2]
[397671246,1765219840466,-922.16,8.219e-05,2]
[397671247,1765219840476,-500.0,8.219e-05,2]
[397671249,1765219840485,-737.94,8.219e-05,2]
[397671251,1765219840494,-1600.56,8.219e-05,2]
[397671253,1765219840503,-500.0,8.219e-05,2]
[397671255,1765219840515,-423.94014415,8.219e-05,2]
[397671258,1765219840524,-1068.45,8.219e-05,2]
[397671260,1765219840534,-546.8670167,8.219e-05,2]
[397671262,1765219840543,-554.58,8.219e-05,2]
[397671264,1765219840553,-1327.24,8.219e-05,2]
[397671266,1765219840562,-858.17,8.219e-05,2]
[397671267,1765219840572,-500.0,8.219e-05,2]
[397671270,1765219840581,-682.02,8.219e-05,2]
[397671272,1765219840591,-353.23240346,8.219e-05,2]
[397671274,1765219840600,-624.13,8.219e-05,2]
[397671275,1765219840609,-1398.51,8.219e-05,2]
[397671277,1765219840619,-620.57,8.219e-05,2]
[397671280,1765219840628,-500.0,8.219e-05,2]
[397671282,1765219840639,-538.74054192,8.219e-05,2]
[397671284,1765219840648,-181.5852899,8.219e-05,2]
[397671286,1765219840661,-340.5447101,8.219e-05,2]
[397671288,1765219840672,-500.0,8.219e-05,2]
[397671290,1765219840682,-500.0,8.219e-05,2]
[397671292,1765219840692,-500.0,8.219e-05,2]
[397671294,1765219840701,-500.0,8.219e-05,2]
[397671296,1765219840710,-639.44545939,8.219e-05,2]
[397671298,1765219840719,-2222.41,8.219e-05,2]
[397671300,1765219840728,-416.43694744,8.219e-05,2]
[397671302,1765219840745,-1206.29369563,8.219e-05,2]
[397671306,1765219840768,-108.08935693,8.219e-05,2]
[397671308,1765219840777,-563.69001142,8.219e-05,2]
[397671310,1765219840788,-888.98998858,8.219e-05,2]
[397671312,1765219840797,-500.0,8.219e-05,2]
[397671314,1765219840806,-500.0,8.219e-05,2]
[397671316,1765219840815,-733.21,8.219e-05,2]
[397671318,1765219840825,-500.0,8.219e-05,2]
[397671320,1765219840834,-500.0,8.219e-05,2]
[397671322,1765219840843,-606.29,8.219e-05,2]
[397671324,1765219840853,-613.18,8.219e-05,2]
[397671326,1765219840862,-617.73,8.219e-05,2]
[397671328,1765219840871,-564.77,8.219e-05,2]
[397671330,1765219840880,-996.36,8.219e-05,2]
[397671332,1765219840889,-500.0,8.219e-05,2]
[397671334,1765219840904,-738.41,8.219e-05,2]
[397671336,1765219840915,-1550.41,8.219e-05,2]
[397671338,1765219840927,-611.45,8.219e-05,2]
[397671340,1765219840939,-510.81361187,8.219e-05,2]
[397671342,1765219840950,-962.09,8.219e-05,2]
[397671345,1765219840959,-500.0,8.219e-05,2]
[397671346,1765219840969,-627.04748467,8.219e-05,2]
[397671349,1765219840982,-364.92834405,8.219e-05,2]
[397671852,1765219846083,-251.33165595,8.219e-05,2]
[397671854,1765219846092,-500.0,8.219e-05,2]
[397671856,1765219846102,-500.0,8.219e-05,2]
[397671858,1765219846111,-500.0,8.219e-05,2]
[397671860,1765219846121,-1386.75,8.219e-05,2]
[397671862,1765219846131,-500.0,8.219e-05,2]
[397671864,1765219846140,-500.0,8.219e-05,2]
[397671866,1765219846150,-500.0,8.219e-05,2]
[397671868,1765219846159,-887.62,8.219e-05,2]
[397671870,1765219846170,-500.0,8.219e-05,2]
[397671872,1765219846180,-500.79,8.219e-05,2]
[397671874,1765219846189,-500.0,8.219e-05,2]
[397671876,1765219846198,-501.43826498,8.219e-05,2]
[397671878,1765219846208,-500.0,8.219e-05,2]
[397671881,1765219846217,-500.0,8.219e-05,2]
[397671883,1765219846228,-500.0,8.219e-05,2]
[397671885,1765219846237,-635.87,8.219e-05,2]
[397671887,1765219846247,-542.17,8.219e-05,2]
[397671889,1765219846256,-500.0,8.219e-05,2]
[397671891,1765219846265,-702.24,8.219e-05,2]
[397671893,1765219846274,-743.79,8.219e-05,2]
[397671895,1765219846283,-500.0,8.219e-05,2]
[397671897,1765219846292,-500.0,8.219e-05,2]
[397671899,1765219846302,-500.0,8.219e-05,2]
[397671901,1765219846311,-500.0,8.219e-05,2]
[397671903,1765219846321,-573.07,8.219e-05,2]
[397671905,1765219846330,-2016.26,8.219e-05,2]
[397671907,1765219846339,-500.0,8.219e-05,2]
[397671909,1765219846348,-500.0,8.219e-05,2]
[397671911,1765219846357,-500.0,8.219e-05,2]
[397671913,1765219846366,-1020.43,8.219e-05,2]
[397671915,1765219846374,-603.05,8.219e-05,2]
[397671917,1765219846384,-595.86,8.219e-05,2]
[397671918,1765219846393,-227.52757759,8.219e-05,2]
[397671946,1765219846651,-272.47242241,8.219e-05,2]
[397671948,1765219846661,-236.22983609,8.219e-05,2]
[397671952,1765219846694,-562.12016391,8.219e-05,2]
[397671954,1765219846703,-261.60111347,8.219e-05,2]
[397686605,1765220844338,-309.61526779,6.588e-05,2]
[397686606,1765220847101,-4500.0,6.588e-05,2]
[397686609,1765220892050,153.82,5.006e-05,2]
[397686610,1765220892313,153.8,5.006e-05,2]
[397686612,1765220950085,-190.38473221,6.588e-05,2]
[397686613,1765220950108,-103.61526779,6.655e-05,2]
[397686624,1765220965143,-4896.38473221,6.655e-05,2]
[397686625,1765220965164,-3.61526779,6.756e-05,2]
[397686646,1765221032218,-5000.0,6.621e-05,2]
[397686647,1765221032228,-514.0,6.621e-05,2]
[397686648,1765221032238,-5000.0,6.688e-05,2]
[397686649,1765221032248,-300.0,6.755e-05,2]
[397686650,1765221032257,-277.84043447,6.756e-05,2]
[397686651,1765221032266,-1732.76,7.034e-05,2]
[397686652,1765221032276,-300.0,7.28e-05,2]
[397686653,1765221032285,-300.0,7.282e-05,2]
[397686654,1765221032297,-300.0,7.282e-05,2]
[397686655,1765221032313,-300.0,7.282e-05,2]
[397686656,1765221032322,-300.0,7.282e-05,2]
[397686657,1765221032332,-300.0,7.282e-05,2]
[397686658,1765221032343,-300.0,7.282e-05,2]
[397686659,1765221032352,-300.0,7.282e-05,2]
[397686660,1765221032361,-300.0,7.282e-05,2]
[397686661,1765221032370,-300.0,7.282e-05,2]
[397686662,1765221032382,-300.0,7.282e-05,2]
[397686663,1765221032391,-300.0,7.282e-05,2]
[397686664,1765221032400,-300.0,7.282e-05,2]
[397686665,1765221032410,-300.0,7.282e-05,2]
[397686666,1765221032419,-300.0,7.282e-05,2]
[397686667,1765221032429,-263.92116557,7.282e-05,2]
[397686668,1765221032444,-36.07883443,7.282e-05,2]
[397686669,1765221032454,-250.0,7.351e-05,3]
[397686670,1765221032468,-3465.52,7.369e-05,2]
[397686671,1765221032476,-167.4942889,7.397e-05,2]
[397686672,1765221032486,-675.6400257,7.397e-05,2]
[397686673,1765221032494,-604.0667202,7.397e-05,2]
[397686674,1765221032503,-165.2922929,7.397e-05,2]
[397686675,1765221032512,-596.9515814,7.397e-05,2]
[397686676,1765221032524,-165.2922929,7.397e-05,2]
[397686677,1765221032533,-302.0333601,7.397e-05,2]
[397686678,1765221032542,-596.9515814,7.397e-05,2]
[397686679,1765221032550,-211.0,7.431e-05,2]
[397686680,1765221032559,-415.0,7.622e-05,2]
[397686681,1765221032568,-174.659,7.697e-05,2]
[397686682,1765221032576,-5198.29,7.704e-05,2]
[397686683,1765221032586,-2487.15318209,7.796e-05,2]
[397686684,1765221032595,-999.20063949,7.894e-05,2]
[397686685,1765221032604,-600.0,7.974e-05,2]
[397686686,1765221032613,-99.70762578,8.039e-05,2]
[397686732,1765221038579,-3997.59973897,6.555e-05,2]
[397686733,1765221038591,-1002.40026103,6.555e-05,2]
[397686734,1765221038601,-3614.66302099,8.039e-05,2]
[397686735,1765221038647,-3216.67935323,8.039e-05,2]
[397686736,1765221038658,-176.88129802,8.08e-05,2]
[397686737,1765221038668,-500.0,8.119e-05,2]
[397686738,1765221038678,-217.81,8.119e-05,2]
[397686739,1765221038688,-198.0,8.214e-05,2]
[397686740,1765221038698,-580.0,8.214e-05,2]
[397686741,1765221038707,-151.0,8.214e-05,2]
[397686742,1765221038717,-484.0,8.214e-05,2]
[397686743,1765221038728,-500.0,8.214e-05,2]
[397686744,1765221038739,-500.0,8.214e-05,2]
[397686745,1765221038748,-151.0,8.214e-05,2]
[397686746,1765221038757,-151.0,8.214e-05,2]
[397686747,1765221038767,-1000.0,8.214e-05,2]
[397686748,1765221038777,-1000.0,8.214e-05,2]
[397686749,1765221038786,-1000.0,8.214e-05,2]
[397686750,1765221038796,-1000.0,8.214e-05,2]
[397686751,1765221038806,-250.0,8.214e-05,2]
[397686752,1765221038816,-1000.0,8.214e-05,2]
[397686753,1765221038825,-250.0,8.214e-05,2]
[397686754,1765221038834,-1000.0,8.214e-05,2]
[397686755,1765221038845,-250.0,8.214e-05,2]
[397686757,1765221038854,-1000.0,8.214e-05,2]
[397686759,1765221038864,-250.0,8.214e-05,2]
[397686761,1765221038873,-1000.0,8.214e-05,2]
[397686763,1765221038883,-156.45337842,8.214e-05,2]
[397686766,1765221038895,-93.54662158,8.214e-05,2]
[397686768,1765221038905,-246.78670325,8.214e-05,2]
[397686930,1765221040451,-304.127,8.214e-05,2]
[397686932,1765221040464,-449.08629675,8.214e-05,2]
[397686934,1765221040473,-250.0,8.214e-05,2]
[397686937,1765221040483,-1000.0,8.214e-05,2]
[397686938,1765221040493,-200.71818656,8.214e-05,2]
[397686941,1765221040503,-1067.87266344,8.214e-05,2]
[397686943,1765221040512,-477.24110637,8.214e-05,2]
[397686945,1765221040522,-500.0,8.214e-05,2]
[397686947,1765221040532,-500.0,8.214e-05,2]
[397686948,1765221040541,-503.3877327,8.214e-05,2]
[397686950,1765221040550,-500.0,8.214e-05,2]
[397686952,1765221040559,-500.0,8.214e-05,2]
[397686954,1765221040568,-500.0,8.214e-05,2]
[397686956,1765221040579,-250.0,8.214e-05,2]
[397686958,1765221040589,-500.0,8.214e-05,2]
[397686960,1765221040598,-203.0,8.214e-05,2]
[397686962,1765221040608,-500.0,8.214e-05,2]
[397686965,1765221040618,-500.0,8.214e-05,2]
[397686968,1765221040627,-306.57858205,8.214e-05,2]
[397686971,1765221040636,-500.0,8.214e-05,2]
[397686974,1765221040647,-500.0,8.214e-05,2]
[397686977,1765221040657,-500.0,8.214e-05,2]
[397686979,1765221040666,-500.0,8.214e-05,2]
[397686981,1765221040676,-500.0,8.214e-05,2]
[397686983,1765221040685,-500.0,8.214e-05,2]
[397686985,1765221040695,-500.0,8.214e-05,2]
[397686987,1765221040704,-500.0,8.214e-05,2]
[397686989,1765221040714,-500.0,8.214e-05,2]
[397686991,1765221040723,-500.0,8.214e-05,2]
[397686993,1765221040733,-500.0,8.214e-05,2]
[397686995,1765221040742,-500.0,8.214e-05,2]
[397686997,1765221040752,-500.0,8.214e-05,2]
[397686999,1765221040761,-500.0,8.214e-05,2]
[397687001,1765221040771,-500.0,8.214e-05,2]
[397687003,1765221040779,-500.0,8.214e-05,2]
[397687005,1765221040789,-500.0,8.214e-05,2]
[397687007,1765221040798,-500.0,8.214e-05,2]
[397687009,1765221040807,-500.0,8.214e-05,2]
[397687011,1765221040816,-500.0,8.214e-05,2]
[397687013,1765221040825,-500.0,8.214e-05,2]
[397687015,1765221040834,-500.0,8.214e-05,2]
[397687017,1765221040844,-250.0,8.218e-05,2]
[397687019,1765221040853,-500.0,8.219e-05,2]
[397687021,1765221040862,-500.0,8.219e-05,2]
[397687023,1765221040871,-500.23671378,8.219e-05,2]
[397687025,1765221040880,-500.21457802,8.219e-05,2]
[397687027,1765221040889,-500.0,8.219e-05,2]
[397687029,1765221040899,-500.0,8.219e-05,2]
[397687031,1765221040908,-500.0,8.219e-05,2]
[397687033,1765221040918,-500.0,8.219e-05,2]
[397687035,1765221040927,-797.01,8.219e-05,2]
[397687037,1765221040937,-500.0,8.219e-05,2]
[397687039,1765221040946,-510.08631106,8.219e-05,2]
[397687041,1765221040955,-500.0,8.219e-05,2]
[397687043,1765221040965,-500.0,8.219e-05,2]
[397687045,1765221040974,-883.73,8.219e-05,2]
[397687047,1765221040983,-500.0,8.219e-05,2]
[397687049,1765221040993,-500.0,8.219e-05,2]
[397687051,1765221041003,-707.19,8.219e-05,2]
[397687053,1765221041012,-519.01,8.219e-05,2]
[397687055,1765221041022,-1070.51,8.219e-05,2]
[397687057,1765221041032,-500.0,8.219e-05,2]
[397687059,1765221041042,-594.71,8.219e-05,2]
[397687061,1765221041052,-653.6,8.219e-05,2]
[397687063,1765221041063,-183.92367379,8.219e-05,2]
[397687065,1765221041073,-500.0,8.219e-05,2]
[397687067,1765221041083,-500.0,8.219e-05,2]
[397687070,1765221041093,-536.34,8.219e-05,2]
[397687072,1765221041103,-500.0,8.219e-05,2]
[397687074,1765221041112,-500.0,8.219e-05,2]
[397687076,1765221041121,-587.63,8.219e-05,2]
[397687078,1765221041131,-541.24,8.219e-05,2]
[397687080,1765221041140,-822.41,8.219e-05,2]
[397687082,1765221041150,-500.0,8.219e-05,2]
[397687084,1765221041161,-591.99,8.219e-05,2]
[397687086,1765221041171,-1038.44,8.219e-05,2]
[397687088,1765221041181,-598.12,8.219e-05,2]
[397687090,1765221041191,-500.0,8.219e-05,2]
[397687092,1765221041200,-1328.97,8.219e-05,2]
[397687094,1765221041210,-500.0,8.219e-05,2]
[397687096,1765221041221,-519.58,8.219e-05,2]
[397687098,1765221041231,-1143.43,8.219e-05,2]
[397687100,1765221041241,-500.0,8.219e-05,2]
[397687102,1765221041251,-500.0,8.219e-05,2]
[397687104,1765221041261,-500.0,8.219e-05,2]
[397687106,1765221041271,-500.0,8.219e-05,2]
[397687108,1765221041280,-500.0,8.219e-05,2]
[397687110,1765221041291,-1852.61,8.219e-05,2]
[397687112,1765221041306,-1852.61,8.219e-05,2]
[397687114,1765221041316,-1852.61,8.219e-05,2]
[397687116,1765221041326,-1852.61,8.219e-05,2]
[397687118,1765221041335,-1852.61,8.219e-05,2]
[397687120,1765221041346,-590.59,8.219e-05,2]
[397687122,1765221041356,-1852.61,8.219e-05,2]
[397687124,1765221041366,-1852.61,8.219e-05,2]
[397687126,1765221041376,-1852.61,8.219e-05,2]
[397687128,1765221041388,-1852.61,8.219e-05,2]
[397687130,1765221041397,-1852.61,8.219e-05,2]
[397687132,1765221041407,-1852.61,8.219e-05,2]
[397687134,1765221041417,-1852.61,8.219e-05,2]
[397687136,1765221041426,-977.91,8.219e-05,2]
[397687138,1765221041436,-1852.61,8.219e-05,2]
[397687140,1765221041445,-1732.33875958,8.219e-05,2]
[397687144,1765221041472,-120.27124042,8.219e-05,2]
[397687146,1765221041482,-1320.34721718,8.219e-05,2]
[397687148,1765221041493,-532.26278282,8.219e-05,2]
[397687150,1765221041502,-587.24263725,8.219e-05,2]
[397687153,1765221041513,-1265.36736275,8.219e-05,2]
[397687155,1765221041523,-1852.61,8.219e-05,2]
[397687156,1765221041532,-1852.61,8.219e-05,2]
[397687158,1765221041541,-1852.61,8.219e-05,2]
[397687160,1765221041551,-1852.61,8.219e-05,2]
[397687163,1765221041563,-1852.61,8.219e-05,2]
[397687164,1765221041573,-1852.61,8.219e-05,2]
[397687167,1765221041583,-879.14,8.219e-05,2]
[397687169,1765221041593,-1852.61,8.219e-05,2]
[397687171,1765221041603,-1852.80093891,8.219e-05,2]
[397687173,1765221041613,-500.0,8.219e-05,2]
[397687175,1765221041623,-500.0,8.219e-05,2]
[397687177,1765221041632,-500.0,8.219e-05,2]
[397687179,1765221041643,-500.0,8.219e-05,2]
[397687181,1765221041652,-736.32,8.219e-05,2]
[397687183,1765221041662,-500.0,8.219e-05,2]
[397687185,1765221041673,-500.0,8.219e-05,2]
[397687187,1765221041683,-500.0,8.219e-05,2]
[397687189,1765221041693,-500.0,8.219e-05,2]
[397687191,1765221041702,-299.6751632,8.219e-05,2]
[397687193,1765221041712,-548.72446963,8.219e-05,2]
[397687195,1765221041722,-544.12,8.219e-05,2]
[397687197,1765221041732,-500.0,8.219e-05,2]
[397687199,1765221041743,-500.0,8.219e-05,2]
[397687201,1765221041752,-500.0,8.219e-05,2]
[397687203,1765221041762,-500.0,8.219e-05,2]
[397687205,1765221041772,-500.0,8.219e-05,2]
[397687207,1765221041782,-1023.93,8.219e-05,2]
[397687209,1765221041792,-500.0,8.219e-05,2]
[397687211,1765221041801,-1329.64,8.219e-05,2]
[397687213,1765221041810,-702.66,8.219e-05,2]
[397687214,1765221041820,-36968.8401523,8.219e-05,2]
[397687217,1765221041831,-646.97,8.219e-05,2]
[397687218,1765221041842,-500.0,8.219e-05,2]
[397687220,1765221041853,-1340.24,8.219e-05,2]
[397687222,1765221041864,-1603.46,8.219e-05,2]
[397687224,1765221041876,-500.0,8.219e-05,2]
[397687226,1765221041886,-500.0,8.219e-05,2]
[397687229,1765221041897,-500.37,8.219e-05,2]
[397687230,1765221041908,-577.92,8.219e-05,2]
[397687232,1765221041920,-500.0,8.219e-05,2]
[397687234,1765221041931,-500.0,8.219e-05,2]
[397687236,1765221041941,-727.93,8.219e-05,2]
[397687238,1765221041952,-500.92274771,8.219e-05,2]
[397687240,1765221041962,-500.0,8.219e-05,2]
[397687242,1765221041971,-585.97,8.219e-05,2]
[397687244,1765221041981,-500.0,8.219e-05,2]
[397687246,1765221041991,-500.0,8.219e-05,2]
[397687248,1765221042001,-500.0,8.219e-05,2]
[397687250,1765221042012,-500.0,8.219e-05,2]
[397687252,1765221042022,-2129.81,8.219e-05,2]
[397687254,1765221042033,-500.0,8.219e-05,2]
[397687256,1765221042044,-531.47,8.219e-05,2]
[397687258,1765221042054,-500.0,8.219e-05,2]
[397687260,1765221042064,-151.0,8.219e-05,2]
[397687262,1765221042075,-500.86066975,8.219e-05,2]
[397687264,1765221042085,-151.0,8.219e-05,2]
[397687266,1765221042095,-542.79,8.219e-05,2]